[Event "*** SCC Grand Prix: Titled Tuesday Blitz"]
[Site "Chess.com"]
[Date "2020.08.25"]
[Round "2"]
[White "sergivila"]
[Black "chesslh19"]
[Result "1/2-1/2"]
[WhiteElo "2434"]
[BlackElo "2220"]
[TimeControl "180+1"]
[EndTime "10:18:33 PDT"]
[Termination "Game drawn by repetition"]

1. e4 {[%clk 0:03:00.9]} 1... e5 {[%clk 0:02:55.3]} 2. Nf3 {[%clk 0:03:00.1]}
2... Nf6 {[%clk 0:02:55.9]} 3. Nxe5 {[%clk 0:02:58.8]} 3... d6 {[%clk 0:02:56]}
4. Nf3 {[%clk 0:02:58.3]} 4... Nxe4 {[%clk 0:02:56.2]} 5. Nc3 {[%clk 0:02:58.5]}
5... Nxc3 {[%clk 0:02:56.5]} 6. dxc3 {[%clk 0:02:59.4]} 6... Be7 {[%clk
0:02:57.4]} 7. Be3 {[%clk 0:02:59.8]} 7... Nc6 {[%clk 0:02:57.2]} 8. Qd2 {[%clk
0:02:59.6]} 8... Be6 {[%clk 0:02:55.8]} 9. O-O-O {[%clk 0:02:59.3]} 9... Qd7
{[%clk 0:02:49.8]} 10. Kb1 {[%clk 0:02:57.2]} 10... Bf6 {[%clk 0:02:44.6]} 11.
Ng5 {[%clk 0:02:51]} 11... Bxg5 {[%clk 0:02:27.5]} 12. Bxg5 {[%clk 0:02:50.3]}
12... f6 {[%clk 0:02:28.4]} 13. Be3 {[%clk 0:02:50]} 13... O-O-O {[%clk
0:02:24]} 14. Bb5 {[%clk 0:02:44.2]} 14... a6 {[%clk 0:02:20.7]} 15. Ba4 {[%clk
0:02:39.8]} 15... Qf7 {[%clk 0:02:09.5]} 16. Bb3 {[%clk 0:02:19.2]} 16... Bxb3
{[%clk 0:01:58.2]} 17. cxb3 {[%clk 0:02:20.1]} 17... Qg6+ {[%clk 0:01:45.4]} 18.
Ka1 {[%clk 0:02:17.9]} 18... Qxg2 {[%clk 0:01:44.5]} 19. Rhg1 {[%clk 0:02:13.2]}
19... Qxh2 {[%clk 0:01:43.6]} 20. Rxg7 {[%clk 0:02:13]} 20... Rhg8 {[%clk
0:01:34]} 21. Rxg8 {[%clk 0:02:05.3]} 21... Rxg8 {[%clk 0:01:33.5]} 22. a3
{[%clk 0:02:02.5]} 22... Rg1 {[%clk 0:01:26.5]} 23. Rxg1 {[%clk 0:01:58.5]}
23... Qxg1+ {[%clk 0:01:26.5]} 24. Ka2 {[%clk 0:01:59.4]} 24... Qg4 {[%clk
0:01:21.2]} 25. Qd5 {[%clk 0:01:57.6]} 25... Qd7 {[%clk 0:00:58.6]} 26. Qg8+
{[%clk 0:01:56.2]} 26... Nd8 {[%clk 0:00:57.6]} 27. Bd4 {[%clk 0:01:53.6]} 27...
Qe7 {[%clk 0:00:49.6]} 28. Qh8 {[%clk 0:01:50.1]} 28... f5 {[%clk 0:00:38.7]}
29. Bf6 {[%clk 0:01:49]} 29... Qd7 {[%clk 0:00:38.9]} 30. f4 {[%clk 0:01:42]}
30... c5 {[%clk 0:00:38.6]} 31. c4 {[%clk 0:01:29.2]} 31... Kc7 {[%clk
0:00:38.5]} 32. Bxd8+ {[%clk 0:01:28.2]} 32... Qxd8 {[%clk 0:00:39.4]} 33. Qxh7+
{[%clk 0:01:28.2]} 33... Qd7 {[%clk 0:00:40.1]} 34. Qg8 {[%clk 0:01:27.5]} 34...
Qe7 {[%clk 0:00:29.8]} 35. b4 {[%clk 0:01:19.8]} 35... cxb4 {[%clk 0:00:25.4]}
36. axb4 {[%clk 0:01:18.1]} 36... Qe4 {[%clk 0:00:22.2]} 37. Qf7+ {[%clk
0:01:12]} 37... Kb8 {[%clk 0:00:21.1]} 38. Qf8+ {[%clk 0:01:09.5]} 38... Kc7
{[%clk 0:00:20.7]} 39. Qf7+ {[%clk 0:01:05.4]} 39... Kb8 {[%clk 0:00:20.5]} 40.
Qf8+ {[%clk 0:01:04.9]} 40... Kc7 {[%clk 0:00:20.8]} 41. Qf7+ {[%clk 0:01:05]}
1/2-1/2

[Event "*** SCC Grand Prix: Titled Tuesday Blitz"]
[Site "Chess.com"]
[Date "2020.08.25"]
[Round "2"]
[White "Fortitudine"]
[Black "Doraemon7"]
[Result "0-1"]
[WhiteElo "2236"]
[BlackElo "2622"]
[TimeControl "180+1"]
[EndTime "10:18:37 PDT"]
[Termination "Doraemon7 won by resignation"]

1. c4 {[%clk 0:03:00.9]} 1... e5 {[%clk 0:02:59.7]} 2. g3 {[%clk 0:03:00.5]}
2... c6 {[%clk 0:02:59.3]} 3. d4 {[%clk 0:02:59.6]} 3... e4 {[%clk 0:02:57.6]}
4. Bg2 {[%clk 0:02:54.4]} 4... d5 {[%clk 0:02:56]} 5. Nc3 {[%clk 0:02:54]} 5...
Nf6 {[%clk 0:02:54.7]} 6. Bg5 {[%clk 0:02:50.6]} 6... Nbd7 {[%clk 0:02:40.9]} 7.
cxd5 {[%clk 0:02:46.7]} 7... cxd5 {[%clk 0:02:40.6]} 8. Nh3 {[%clk 0:02:46.7]}
8... h6 {[%clk 0:02:39.6]} 9. Bxf6 {[%clk 0:02:46]} 9... Nxf6 {[%clk 0:02:40.5]}
10. e3 {[%clk 0:02:30]} 10... Be7 {[%clk 0:02:31.2]} 11. Nf4 {[%clk 0:02:29.3]}
11... O-O {[%clk 0:02:28]} 12. O-O {[%clk 0:02:28.8]} 12... g5 {[%clk
0:02:21.6]} 13. Nfe2 {[%clk 0:02:11.2]} 13... Be6 {[%clk 0:02:01.9]} 14. Qb3
{[%clk 0:02:08.7]} 14... Qd7 {[%clk 0:01:56.9]} 15. Rac1 {[%clk 0:02:00.1]}
15... Rfc8 {[%clk 0:01:55.9]} 16. Na4 {[%clk 0:01:55.3]} 16... b6 {[%clk
0:01:55.9]} 17. Nec3 {[%clk 0:01:49.1]} 17... Rc4 {[%clk 0:01:45.3]} 18. Rfe1
{[%clk 0:01:09.3]} 18... Rac8 {[%clk 0:01:32.2]} 19. Bf1 {[%clk 0:01:06.7]}
19... b5 {[%clk 0:01:24.8]} 20. Nc5 {[%clk 0:00:59.3]} 20... Bxc5 {[%clk
0:01:20.2]} 21. dxc5 {[%clk 0:00:58.9]} 21... R8xc5 {[%clk 0:00:58.4]} 22. Bxc4
{[%clk 0:00:56.5]} 22... bxc4 {[%clk 0:00:53.2]} 23. Qb8+ {[%clk 0:00:49.1]}
23... Rc8 {[%clk 0:00:51.3]} 24. Qe5 {[%clk 0:00:48.2]} 24... Ng4 {[%clk
0:00:51.1]} 25. Qd4 {[%clk 0:00:48.3]} 25... f6 {[%clk 0:00:44.7]} 26. Qd1
{[%clk 0:00:14.9]} 26... Ne5 {[%clk 0:00:43.2]} 27. Ne2 {[%clk 0:00:15.4]} 27...
Bg4 {[%clk 0:00:40.5]} 28. Rc2 {[%clk 0:00:13.4]} 28... Bf3 {[%clk 0:00:39]} 29.
Qc1 {[%clk 0:00:12.4]} 29... Qh3 {[%clk 0:00:38.7]} 0-1

[Event "*** SCC Grand Prix: Titled Tuesday Blitz"]
[Site "Chess.com"]
[Date "2020.08.25"]
[Round "2"]
[White "Gusarov91"]
[Black "Susal_De_Silva"]
[Result "1-0"]
[WhiteElo "2646"]
[BlackElo "2354"]
[TimeControl "180+1"]
[EndTime "10:18:39 PDT"]
[Termination "Gusarov91 won by resignation"]

1. d4 {[%clk 0:02:58.4]} 1... Nf6 {[%clk 0:02:59.5]} 2. Nf3 {[%clk 0:02:58.5]}
2... e6 {[%clk 0:02:59.6]} 3. c4 {[%clk 0:02:58.7]} 3... b6 {[%clk 0:02:59.6]}
4. g3 {[%clk 0:02:58.6]} 4... Bb7 {[%clk 0:02:59.9]} 5. Bg2 {[%clk 0:02:59]}
5... d5 {[%clk 0:02:56.5]} 6. Ne5 {[%clk 0:02:57.4]} 6... c6 {[%clk 0:02:56.5]}
7. O-O {[%clk 0:02:56.6]} 7... Be7 {[%clk 0:02:56.2]} 8. Nc3 {[%clk 0:02:56.2]}
8... O-O {[%clk 0:02:56]} 9. Bg5 {[%clk 0:02:55]} 9... Nfd7 {[%clk 0:02:52.2]}
10. Bxe7 {[%clk 0:02:54.1]} 10... Qxe7 {[%clk 0:02:53.1]} 11. Nxd7 {[%clk
0:02:34.8]} 11... Qxd7 {[%clk 0:02:48.7]} 12. Qb3 {[%clk 0:02:28]} 12... Na6
{[%clk 0:02:45.7]} 13. Rfd1 {[%clk 0:02:26.2]} 13... Nc7 {[%clk 0:02:42.9]} 14.
Rac1 {[%clk 0:02:25.2]} 14... Rfd8 {[%clk 0:02:40.2]} 15. e4 {[%clk 0:02:24.9]}
15... Rac8 {[%clk 0:02:20.7]} 16. c5 {[%clk 0:02:21.1]} 16... b5 {[%clk
0:02:14.9]} 17. exd5 {[%clk 0:02:16.1]} 17... exd5 {[%clk 0:02:10.5]} 18. Ne2
{[%clk 0:02:14.1]} 18... Ne6 {[%clk 0:02:10.1]} 19. Bh3 {[%clk 0:02:13.1]} 19...
Qc7 {[%clk 0:02:04.7]} 20. Bxe6 {[%clk 0:02:12.4]} 20... fxe6 {[%clk 0:02:05.6]}
21. Qe3 {[%clk 0:02:12.9]} 21... Re8 {[%clk 0:02:05]} 22. f4 {[%clk 0:02:12.7]}
22... Re7 {[%clk 0:02:02.5]} 23. Kg2 {[%clk 0:02:11.2]} 23... Rce8 {[%clk
0:02:02.4]} 24. Ng1 {[%clk 0:02:11.8]} 24... Bc8 {[%clk 0:02:02.2]} 25. Nf3
{[%clk 0:02:11.8]} 25... a5 {[%clk 0:02:00.4]} 26. a3 {[%clk 0:02:09.2]} 26...
Rf8 {[%clk 0:01:59.2]} 27. Re1 {[%clk 0:02:08.3]} 27... Bd7 {[%clk 0:01:58.7]}
28. b3 {[%clk 0:02:06.5]} 28... Be8 {[%clk 0:01:58]} 29. Ne5 {[%clk 0:02:04.9]}
29... Bg6 {[%clk 0:01:53.7]} 30. Nxg6 {[%clk 0:02:04.6]} 30... hxg6 {[%clk
0:01:54.6]} 31. h4 {[%clk 0:02:03.5]} 31... Rf5 {[%clk 0:01:53.6]} 32. Rc2
{[%clk 0:02:00.9]} 32... Rf6 {[%clk 0:01:48.2]} 33. Rce2 {[%clk 0:02:00.7]}
33... Qd7 {[%clk 0:01:45.8]} 34. Qd2 {[%clk 0:01:59.6]} 34... Qc7 {[%clk
0:01:44.3]} 35. Re5 {[%clk 0:01:59.4]} 35... Qd8 {[%clk 0:01:36]} 36. h5 {[%clk
0:01:54.5]} 36... gxh5 {[%clk 0:01:35]} 37. Rxh5 {[%clk 0:01:54.7]} 37... Rf5
{[%clk 0:01:30.5]} 38. Reh1 {[%clk 0:01:45]} 38... Rxh5 {[%clk 0:01:29.2]} 39.
Rxh5 {[%clk 0:01:45]} 39... g6 {[%clk 0:01:22.3]} 40. Re5 {[%clk 0:01:40.5]}
40... Ra7 {[%clk 0:01:16.6]} 41. Rxe6 {[%clk 0:01:38.7]} 41... a4 {[%clk
0:01:15.5]} 42. b4 {[%clk 0:01:38.4]} 42... Rh7 {[%clk 0:01:11.3]} 43. Qe3
{[%clk 0:01:37.3]} 43... Qd7 {[%clk 0:01:09]} 44. Qe5 {[%clk 0:01:34.6]} 44...
Rf7 {[%clk 0:01:04.4]} 45. Rxg6+ {[%clk 0:01:34.1]} 45... Kf8 {[%clk 0:01:02.4]}
46. Qh8+ {[%clk 0:01:29.7]} 46... Ke7 {[%clk 0:01:02]} 47. Rd6 {[%clk
0:01:29.2]} 47... Qc7 {[%clk 0:00:54.9]} 48. Qh4+ {[%clk 0:01:26.4]} 48... Ke8
{[%clk 0:00:55.2]} 49. Qh8+ {[%clk 0:01:21.2]} 49... Ke7 {[%clk 0:00:52.7]} 50.
Kf3 {[%clk 0:01:15.7]} 50... Rf8 {[%clk 0:00:48.5]} 51. Qh4+ {[%clk 0:01:13]}
51... Ke8 {[%clk 0:00:46.9]} 52. Qh5+ {[%clk 0:01:13.1]} 52... Rf7 {[%clk
0:00:46.7]} 53. Rf6 {[%clk 0:01:10.9]} 53... Qe7 {[%clk 0:00:45.9]} 54. Qxf7+
{[%clk 0:01:10.4]} 1-0

[Event "*** SCC Grand Prix: Titled Tuesday Blitz"]
[Site "Chess.com"]
[Date "2020.08.25"]
[Round "2"]
[White "Fighter008"]
[Black "alexgo05"]
[Result "1-0"]
[WhiteElo "2682"]
[BlackElo "2355"]
[TimeControl "180+1"]
[EndTime "10:18:39 PDT"]
[Termination "Fighter008 won on time"]

1. e4 {[%clk 0:03:00.9]} 1... c5 {[%clk 0:02:57.8]} 2. Nf3 {[%clk 0:03:00.8]}
2... d6 {[%clk 0:02:58.1]} 3. d4 {[%clk 0:03:00.8]} 3... cxd4 {[%clk 0:02:58.8]}
4. Nxd4 {[%clk 0:03:01.5]} 4... Nf6 {[%clk 0:02:59.1]} 5. Nc3 {[%clk 0:03:01.4]}
5... a6 {[%clk 0:02:59.3]} 6. Be3 {[%clk 0:03:01.1]} 6... e5 {[%clk 0:02:59.2]}
7. Nb3 {[%clk 0:03:01.3]} 7... Be6 {[%clk 0:02:59.4]} 8. Qd2 {[%clk 0:03:01.1]}
8... Be7 {[%clk 0:02:57.5]} 9. O-O-O {[%clk 0:02:59.8]} 9... Nbd7 {[%clk
0:02:51.8]} 10. f4 {[%clk 0:02:59.5]} 10... b5 {[%clk 0:02:46.6]} 11. f5 {[%clk
0:02:59.2]} 11... Bc4 {[%clk 0:02:46.7]} 12. g4 {[%clk 0:02:59.3]} 12... Nxg4
{[%clk 0:02:44.4]} 13. Rg1 {[%clk 0:02:59.3]} 13... h5 {[%clk 0:02:44.3]} 14. h3
{[%clk 0:02:56.5]} 14... Ngf6 {[%clk 0:02:43.7]} 15. Rxg7 {[%clk 0:02:54.9]}
15... Rc8 {[%clk 0:01:59.5]} 16. Kb1 {[%clk 0:02:50.2]} 16... b4 {[%clk
0:01:49]} 17. Nd5 {[%clk 0:02:47.6]} 17... Nxd5 {[%clk 0:01:27.8]} 18. exd5
{[%clk 0:02:46]} 18... a5 {[%clk 0:01:27.4]} 19. Bxc4 {[%clk 0:02:32.7]} 19...
Rxc4 {[%clk 0:01:27.3]} 20. Rdg1 {[%clk 0:02:32.9]} 20... Nf6 {[%clk 0:01:23.7]}
21. Qd3 {[%clk 0:02:18.4]} 21... Rc8 {[%clk 0:00:43.4]} 22. Qb5+ {[%clk
0:02:08.8]} 22... Kf8 {[%clk 0:00:40.8]} 23. R7g2 {[%clk 0:01:47.6]} 23... Ra8
{[%clk 0:00:25.1]} 24. Qd3 {[%clk 0:01:41]} 24... a4 {[%clk 0:00:24.9]} 25. Nd2
{[%clk 0:01:40.7]} 25... Qa5 {[%clk 0:00:22.3]} 26. Ne4 {[%clk 0:01:23.1]} 26...
Nxe4 {[%clk 0:00:18.9]} 27. Qxe4 {[%clk 0:01:21.9]} 27... Bf6 {[%clk 0:00:17]}
28. Bh6+ {[%clk 0:01:20.2]} 28... Ke7 {[%clk 0:00:17.3]} 29. Bd2 {[%clk
0:01:18.1]} 29... Rab8 {[%clk 0:00:16.1]} 30. a3 {[%clk 0:01:14.7]} 30... Rhc8
{[%clk 0:00:11.8]} 31. Bxb4 {[%clk 0:01:14]} 31... Qb5 {[%clk 0:00:11.3]} 32.
Rd1 {[%clk 0:01:07.8]} 32... Rc4 {[%clk 0:00:11.2]} 33. Qe2 {[%clk 0:01:05.5]}
33... Rh4 {[%clk 0:00:05.1]} 34. Qe3 {[%clk 0:01:00.5]} 1-0

[Event "*** SCC Grand Prix: Titled Tuesday Blitz"]
[Site "Chess.com"]
[Date "2020.08.25"]
[Round "2"]
[White "frederiksvane"]
[Black "salomez"]
[Result "1-0"]
[WhiteElo "2619"]
[BlackElo "2217"]
[TimeControl "180+1"]
[EndTime "10:18:41 PDT"]
[Termination "frederiksvane won on time"]

1. e4 {[%clk 0:03:00.9]} 1... c5 {[%clk 0:02:59.1]} 2. Nf3 {[%clk 0:03:00.8]}
2... e6 {[%clk 0:02:59.5]} 3. d4 {[%clk 0:03:00.8]} 3... cxd4 {[%clk 0:03:00.4]}
4. Nxd4 {[%clk 0:03:01.7]} 4... Nf6 {[%clk 0:03:00.9]} 5. Nc3 {[%clk 0:03:00.5]}
5... Nc6 {[%clk 0:03:01.5]} 6. Ndb5 {[%clk 0:03:00.8]} 6... d6 {[%clk
0:03:01.7]} 7. Bf4 {[%clk 0:02:59.3]} 7... e5 {[%clk 0:03:02.2]} 8. Bg5 {[%clk
0:02:59.8]} 8... a6 {[%clk 0:03:02.3]} 9. Na3 {[%clk 0:02:59.3]} 9... b5 {[%clk
0:03:02.9]} 10. Nd5 {[%clk 0:02:57.1]} 10... Be7 {[%clk 0:03:03]} 11. Bxf6
{[%clk 0:02:56.9]} 11... Bxf6 {[%clk 0:03:03.4]} 12. c3 {[%clk 0:02:57.3]} 12...
O-O {[%clk 0:03:02]} 13. Nc2 {[%clk 0:02:57.7]} 13... Rb8 {[%clk 0:02:59.4]} 14.
Be2 {[%clk 0:02:36.9]} 14... Bg5 {[%clk 0:02:58.3]} 15. O-O {[%clk 0:02:37.1]}
15... g6 {[%clk 0:02:57.5]} 16. Ncb4 {[%clk 0:02:31.4]} 16... Nxb4 {[%clk
0:02:54.8]} 17. Nxb4 {[%clk 0:02:26.7]} 17... Bb7 {[%clk 0:02:54.9]} 18. Nd5
{[%clk 0:02:21.3]} 18... Bxd5 {[%clk 0:02:36.1]} 19. Qxd5 {[%clk 0:02:20.8]}
19... Be7 {[%clk 0:02:36.6]} 20. Bd1 {[%clk 0:02:18.1]} 20... Qc7 {[%clk
0:02:33.7]} 21. Bb3 {[%clk 0:02:17.5]} 21... Qc5 {[%clk 0:02:33.4]} 22. Qd3
{[%clk 0:02:17.4]} 22... Kg7 {[%clk 0:02:30.7]} 23. Bd5 {[%clk 0:02:15.4]} 23...
f5 {[%clk 0:02:27]} 24. b4 {[%clk 0:02:10.3]} 24... Qc7 {[%clk 0:02:23.7]} 25.
a4 {[%clk 0:02:10.3]} 25... fxe4 {[%clk 0:01:56.3]} 26. Bxe4 {[%clk 0:02:06.1]}
26... Qc4 {[%clk 0:01:55.2]} 27. Qxc4 {[%clk 0:02:02.1]} 27... bxc4 {[%clk
0:01:55.1]} 28. Bd5 {[%clk 0:02:02.4]} 28... Rfc8 {[%clk 0:01:49.8]} 29. Rfe1
{[%clk 0:01:40]} 29... a5 {[%clk 0:01:30.9]} 30. b5 {[%clk 0:01:17]} 30... Rc5
{[%clk 0:01:27]} 31. Rad1 {[%clk 0:01:11.4]} 31... Kf6 {[%clk 0:00:09.5]} 32.
Re4 {[%clk 0:01:10.6]} 32... Rxd5 {[%clk 0:00:02.7]} 33. Rxd5 {[%clk 0:01:09.8]}
33... Ke6 {[%clk 0:00:03.6]} 34. Rd2 {[%clk 0:01:03.3]} 34... d5 {[%clk
0:00:03]} 35. Re1 {[%clk 0:01:04]} 35... Bc5 {[%clk 0:00:01.2]} 36. Kf1 {[%clk
0:01:02.6]} 1-0

[Event "*** SCC Grand Prix: Titled Tuesday Blitz"]
[Site "Chess.com"]
[Date "2020.08.25"]
[Round "2"]
[White "Xeniya2005"]
[Black "gagtemp"]
[Result "1-0"]
[WhiteElo "2357"]
[BlackElo "1956"]
[TimeControl "180+1"]
[EndTime "10:18:41 PDT"]
[Termination "Xeniya2005 won by resignation"]

1. e4 {[%clk 0:03:00.9]} 1... d5 {[%clk 0:02:59.1]} 2. exd5 {[%clk 0:03:00.6]}
2... Qxd5 {[%clk 0:03:00]} 3. Nf3 {[%clk 0:03:00.9]} 3... Bg4 {[%clk 0:02:57.5]}
4. Be2 {[%clk 0:03:01.3]} 4... Nc6 {[%clk 0:02:57.2]} 5. d4 {[%clk 0:03:01.4]}
5... O-O-O {[%clk 0:02:54.4]} 6. Be3 {[%clk 0:03:00.6]} 6... Nf6 {[%clk
0:02:52.9]} 7. Nbd2 {[%clk 0:02:56.4]} 7... e5 {[%clk 0:02:38.1]} 8. c4 {[%clk
0:02:53.6]} 8... Qa5 {[%clk 0:02:34]} 9. d5 {[%clk 0:02:53.4]} 9... e4 {[%clk
0:02:17.8]} 10. Nd4 {[%clk 0:02:40.1]} 10... Bxe2 {[%clk 0:02:06.3]} 11. Qxe2
{[%clk 0:02:35]} 11... Nb4 {[%clk 0:01:43.5]} 12. O-O {[%clk 0:02:30.3]} 12...
h5 {[%clk 0:01:34.5]} 13. a3 {[%clk 0:02:26.2]} 13... Nd3 {[%clk 0:01:15.4]} 14.
b4 {[%clk 0:02:21.8]} 14... Qa4 {[%clk 0:00:56.3]} 15. Nxe4 {[%clk 0:02:15.2]}
15... Nxe4 {[%clk 0:00:50.7]} 16. Qxd3 {[%clk 0:02:14.8]} 16... Nf6 {[%clk
0:00:45]} 17. b5 {[%clk 0:02:06.4]} 17... h4 {[%clk 0:00:34.3]} 18. h3 {[%clk
0:02:05]} 18... Bd6 {[%clk 0:00:31.3]} 19. Rfb1 {[%clk 0:01:45.5]} 19... Rdg8
{[%clk 0:00:28]} 20. Nc2 {[%clk 0:01:28.3]} 20... g5 {[%clk 0:00:24.5]} 21. Bd4
{[%clk 0:01:23.8]} 21... Rh6 {[%clk 0:00:20.4]} 22. c5 {[%clk 0:01:15.3]} 22...
Bf4 {[%clk 0:00:18.6]} 23. Rb4 {[%clk 0:01:11.4]} 23... Qa5 {[%clk 0:00:18.6]}
24. Bc3 {[%clk 0:01:07.1]} 24... c6 {[%clk 0:00:11]} 25. Rxf4 {[%clk 0:01:03.5]}
25... Qc7 {[%clk 0:00:11]} 26. Rxf6 {[%clk 0:01:02.7]} 26... Rxf6 {[%clk
0:00:09.2]} 27. Bxf6 {[%clk 0:01:03.2]} 27... g4 {[%clk 0:00:09.3]} 28. d6
{[%clk 0:01:00.3]} 28... Qd7 {[%clk 0:00:08.9]} 29. Kf1 {[%clk 0:00:49.3]} 29...
gxh3 {[%clk 0:00:07.8]} 30. Qxh3 {[%clk 0:00:48.1]} 1-0

[Event "*** SCC Grand Prix: Titled Tuesday Blitz"]
[Site "Chess.com"]
[Date "2020.08.25"]
[Round "2"]
[White "ChessWarrior7197"]
[Black "m_ezat"]
[Result "1-0"]
[WhiteElo "2911"]
[BlackElo "2556"]
[TimeControl "180+1"]
[EndTime "10:18:46 PDT"]
[Termination "ChessWarrior7197 won by resignation"]

1. e4 {[%clk 0:03:00.9]} 1... c6 {[%clk 0:02:58.5]} 2. d4 {[%clk 0:03:00.7]}
2... d5 {[%clk 0:02:58.8]} 3. exd5 {[%clk 0:03:01.6]} 3... cxd5 {[%clk
0:02:58.3]} 4. Bd3 {[%clk 0:03:00.9]} 4... Nc6 {[%clk 0:02:57.5]} 5. c3 {[%clk
0:03:00.5]} 5... Qc7 {[%clk 0:02:57.9]} 6. h3 {[%clk 0:02:58.9]} 6... g6 {[%clk
0:02:54.8]} 7. Nf3 {[%clk 0:02:58]} 7... Nh6 {[%clk 0:02:51.5]} 8. O-O {[%clk
0:02:57.5]} 8... Bf5 {[%clk 0:02:49.1]} 9. Re1 {[%clk 0:02:55.6]} 9... Bxd3
{[%clk 0:02:43.6]} 10. Qxd3 {[%clk 0:02:56.5]} 10... Nf5 {[%clk 0:02:43.6]} 11.
c4 {[%clk 0:02:44.8]} 11... O-O-O {[%clk 0:02:30.3]} 12. cxd5 {[%clk 0:02:40.1]}
12... Nb4 {[%clk 0:02:26.1]} 13. Qc3 {[%clk 0:02:26.8]} 13... Nc2 {[%clk
0:02:18.3]} 14. Qxc7+ {[%clk 0:02:24.2]} 14... Kxc7 {[%clk 0:02:17.8]} 15. Bf4+
{[%clk 0:02:25.1]} 15... Kb6 {[%clk 0:02:09.2]} 16. Rc1 {[%clk 0:02:24.4]} 16...
Nxa1 {[%clk 0:01:58.5]} 17. Bc7+ {[%clk 0:02:23.2]} 17... Ka6 {[%clk 0:01:58.7]}
18. Bxd8 {[%clk 0:02:19.5]} 18... Bh6 {[%clk 0:01:54.9]} 19. Rc8 {[%clk
0:02:16.9]} 19... Nc2 {[%clk 0:01:43.9]} 20. Rxc2 {[%clk 0:02:03.6]} 20... Rxd8
{[%clk 0:01:37.7]} 21. Nc3 {[%clk 0:02:04.5]} 21... Bg7 {[%clk 0:01:34.8]} 22.
Rd2 {[%clk 0:02:01.7]} 22... b5 {[%clk 0:01:16.4]} 23. g4 {[%clk 0:01:55.6]}
23... Nd6 {[%clk 0:01:06.4]} 24. Re2 {[%clk 0:01:45.3]} 24... b4 {[%clk
0:00:49.5]} 25. Na4 {[%clk 0:01:42]} 25... Kb5 {[%clk 0:00:48.9]} 26. b3 {[%clk
0:01:39.5]} 26... Nc8 {[%clk 0:00:45.4]} 27. Rc2 {[%clk 0:01:36.9]} 27... Nb6
{[%clk 0:00:39.8]} 28. Nxb6 {[%clk 0:01:32.2]} 28... axb6 {[%clk 0:00:39.1]} 29.
Rc7 {[%clk 0:01:30.8]} 29... Bf8 {[%clk 0:00:38.6]} 30. Ng5 {[%clk 0:01:26.8]}
30... Rxd5 {[%clk 0:00:34.8]} 31. Nxh7 {[%clk 0:01:26.5]} 31... Bg7 {[%clk
0:00:15.3]} 32. Rxe7 {[%clk 0:01:25.9]} 32... Bxd4 {[%clk 0:00:15.8]} 33. Rxf7
{[%clk 0:01:25.6]} 33... Bc5 {[%clk 0:00:16.3]} 34. h4 {[%clk 0:01:24.9]} 34...
Rd2 {[%clk 0:00:15]} 35. h5 {[%clk 0:01:24.7]} 35... gxh5 {[%clk 0:00:15.3]} 36.
gxh5 {[%clk 0:01:25.6]} 36... Rxa2 {[%clk 0:00:15.7]} 37. Ng5 {[%clk 0:01:25.9]}
37... Rb2 {[%clk 0:00:09.9]} 38. h6 {[%clk 0:01:25.5]} 38... Rxb3 {[%clk
0:00:09.8]} 39. h7 {[%clk 0:01:24.9]} 39... Bd4 {[%clk 0:00:10.2]} 40. Kg2
{[%clk 0:01:24.5]} 40... Ra3 {[%clk 0:00:08.7]} 41. Ne6 {[%clk 0:01:24.3]} 41...
Bc3 {[%clk 0:00:08.2]} 42. Rf3 {[%clk 0:01:23.8]} 42... Ra8 {[%clk 0:00:08.1]}
43. Nc7+ {[%clk 0:01:22.4]} 43... Kc4 {[%clk 0:00:07.9]} 44. Nxa8 {[%clk
0:01:23.3]} 1-0

[Event "*** SCC Grand Prix: Titled Tuesday Blitz"]
[Site "Chess.com"]
[Date "2020.08.25"]
[Round "2"]
[White "Alexander_Moskalenko"]
[Black "ChessyInstinct"]
[Result "1-0"]
[WhiteElo "2777"]
[BlackElo "2506"]
[TimeControl "180+1"]
[EndTime "10:18:46 PDT"]
[Termination "Alexander_Moskalenko won on time"]

1. c4 {[%clk 0:03:00.1]} 1... c6 {[%clk 0:02:59.4]} 2. Nf3 {[%clk 0:02:58.6]}
2... d5 {[%clk 0:02:59.7]} 3. e3 {[%clk 0:02:59]} 3... Nf6 {[%clk 0:02:59.7]} 4.
b3 {[%clk 0:02:59]} 4... e6 {[%clk 0:02:57.4]} 5. Bb2 {[%clk 0:02:58.9]} 5...
Nbd7 {[%clk 0:02:57.7]} 6. d4 {[%clk 0:02:59.1]} 6... Bd6 {[%clk 0:02:57.7]} 7.
Bd3 {[%clk 0:02:59.4]} 7... b6 {[%clk 0:02:57.1]} 8. O-O {[%clk 0:02:59.1]} 8...
Bb7 {[%clk 0:02:57.6]} 9. Nc3 {[%clk 0:02:59.2]} 9... c5 {[%clk 0:02:56.1]} 10.
cxd5 {[%clk 0:02:58.4]} 10... exd5 {[%clk 0:02:55.3]} 11. Rc1 {[%clk 0:02:54.5]}
11... O-O {[%clk 0:02:54]} 12. Re1 {[%clk 0:02:54.7]} 12... a6 {[%clk
0:02:41.4]} 13. Bf1 {[%clk 0:02:54.2]} 13... Qe7 {[%clk 0:02:39.8]} 14. g3
{[%clk 0:02:52.5]} 14... Rac8 {[%clk 0:02:31.3]} 15. dxc5 {[%clk 0:02:46.6]}
15... bxc5 {[%clk 0:02:14.4]} 16. Bg2 {[%clk 0:02:46.5]} 16... Rfe8 {[%clk
0:02:12.3]} 17. Nh4 {[%clk 0:02:40.7]} 17... Qe6 {[%clk 0:02:10.5]} 18. Ne2
{[%clk 0:02:15.5]} 18... Nb6 {[%clk 0:02:01.8]} 19. Qc2 {[%clk 0:02:06.4]} 19...
Be5 {[%clk 0:01:51.8]} 20. Bxe5 {[%clk 0:02:06.1]} 20... Qxe5 {[%clk 0:01:51.5]}
21. Rcd1 {[%clk 0:01:57.3]} 21... Rc7 {[%clk 0:01:23.7]} 22. Nf4 {[%clk
0:01:51.4]} 22... c4 {[%clk 0:01:08]} 23. Nf3 {[%clk 0:01:46]} 23... Qe4 {[%clk
0:00:55.5]} 24. Qc3 {[%clk 0:01:42.5]} 24... Qe7 {[%clk 0:00:40.7]} 25. Nd4
{[%clk 0:01:35.1]} 25... Nbd7 {[%clk 0:00:30.6]} 26. bxc4 {[%clk 0:01:27.9]}
26... Rxc4 {[%clk 0:00:30.1]} 27. Qb2 {[%clk 0:01:26.7]} 27... Nc5 {[%clk
0:00:28.4]} 28. Nf5 {[%clk 0:01:17.8]} 28... Qe5 {[%clk 0:00:25.7]} 29. Qxe5
{[%clk 0:01:16.8]} 29... Rxe5 {[%clk 0:00:26.6]} 30. Nd6 {[%clk 0:01:16.8]}
30... Rb4 {[%clk 0:00:26.9]} 31. Nxb7 {[%clk 0:01:12.9]} 31... Rxb7 {[%clk
0:00:18.4]} 32. Nxd5 {[%clk 0:01:12.5]} 32... Nxd5 {[%clk 0:00:16.4]} 33. Rxd5
{[%clk 0:01:12.3]} 33... Rxd5 {[%clk 0:00:16.3]} 34. Bxd5 {[%clk 0:01:12.2]}
34... Rb2 {[%clk 0:00:16.7]} 35. Rc1 {[%clk 0:01:11.1]} 35... Ne6 {[%clk
0:00:10.9]} 36. Rc8+ {[%clk 0:01:09.6]} 36... Nf8 {[%clk 0:00:11.4]} 37. Rc7
{[%clk 0:01:06.9]} 37... Ne6 {[%clk 0:00:07.7]} 38. Ra7 {[%clk 0:01:06.8]} 38...
Rb6 {[%clk 0:00:02.1]} 39. Bc4 {[%clk 0:01:06.5]} 39... Nc5 {[%clk 0:00:01.2]}
40. Ra8+ {[%clk 0:01:06]} 1-0